fUST/lending_fUST_20251115
["ID","MTS","AMOUNT","RATE_DAILY","PERIOD"]
[394026814,1763200294895,-533.64,0.0005041,120]
[394026815,1763200294904,-500.0,0.0005041,120]
[394026816,1763200294912,-500.0,0.0005041,120]
[394026817,1763200294922,-1390.62,0.0005041,120]
[394026818,1763200294931,-500.0,0.0005041,120]
[394026819,1763200294941,-572.61,0.0005041,120]
[394026820,1763200294950,-1276.71,0.0005041,120]
[394026821,1763200294959,-500.0,0.0005041,120]
[394026822,1763200294968,-945.13,0.0005041,120]
[394026823,1763200294977,-1188.94,0.0005041,120]
[394026824,1763200294986,-500.0,0.0005041,120]
[394026825,1763200294995,-1077.77,0.0005041,120]
[394026826,1763200295004,-500.0,0.0005041,120]
[394026827,1763200295013,-500.0,0.0005041,120]
[394026828,1763200295022,-500.0,0.0005041,120]
[394026829,1763200295033,-1791.91,0.0005041,120]
[394026830,1763200295044,-500.0,0.0005041,120]
[394026831,1763200295055,-500.0,0.0005041,120]
[394026832,1763200295065,-500.0,0.0005041,120]
[394026833,1763200295074,-631.09805795,0.0005041,120]
[394026834,1763200295083,-500.0,0.0005041,120]
[394026835,1763200295092,-500.0,0.0005041,120]
[394026836,1763200295101,-500.0,0.0005041,120]
[394026837,1763200295110,-504.71723257,0.0005041,120]
[394026838,1763200295119,-500.0,0.0005041,120]
[394026839,1763200295129,-1017.14,0.0005041,120]
[394026840,1763200295139,-500.0,0.0005041,120]
[394026841,1763200295148,-500.0,0.0005041,120]
[394026842,1763200295158,-500.0,0.0005041,120]
[394026843,1763200295170,-500.0,0.0005041,120]
[394026844,1763200295179,-936.67,0.0005041,120]
[394026845,1763200295188,-500.0,0.0005041,120]
[394026846,1763200295198,-500.0,0.0005041,120]
[394026847,1763200295209,-506.45627513,0.0005041,120]
[394026848,1763200295218,-649.89,0.0005041,120]
[394026849,1763200295228,-1776.75,0.0005041,120]
[394026850,1763200295237,-500.0,0.0005041,120]
[394026851,1763200295247,-500.0,0.0005041,120]
[394026852,1763200295257,-500.0,0.0005041,120]
[394026853,1763200295266,-502.12821491,0.0005041,120]
[394026854,1763200295275,-500.0,0.0005041,120]
[394026855,1763200295286,-500.0,0.0005041,120]
[394026856,1763200295295,-500.0,0.0005041,120]
[394026857,1763200295304,-259.03678367,0.0005041,60]
[394026858,1763200295313,-500.0,0.0005041,120]
[394026859,1763200295322,-532.97,0.0005041,120]
[394026860,1763200295331,-500.0,0.0005041,120]
[394026861,1763200295341,-777.09,0.0005041,120]
[394026862,1763200295350,-500.0,0.0005041,120]
[394026863,1763200295359,-500.0,0.0005041,120]
[394026864,1763200295368,-500.0,0.0005041,120]
[394026865,1763200295377,-500.0,0.0005041,120]
[394026866,1763200295386,-1276.7,0.0005041,7]
[394026867,1763200295395,-927.9,0.0005041,120]
[394026868,1763200295404,-500.0,0.0005041,120]
[394026869,1763200295414,-979.1,0.0005041,120]
[394026870,1763200295423,-769.66,0.0005041,120]
[394026871,1763200295432,-505.07454052,0.0005041,120]
[394026872,1763200295441,-500.0,0.0005041,120]
[394026873,1763200295450,-500.0,0.0005041,120]
[394026874,1763200295459,-500.0,0.0005041,120]
[394026875,1763200295469,-500.0,0.0005041,120]
[394026876,1763200295478,-609.02,0.0005041,120]
[394026877,1763200295487,-500.0,0.0005041,10]
[394026878,1763200295496,-500.0,0.0005041,120]
[394026879,1763200295507,-500.0,0.0005041,120]
[394026880,1763200295516,-500.0,0.0005041,120]
[394026881,1763200295525,-624.67,0.0005041,120]
[394026882,1763200295535,-500.0,0.0005041,120]
[394026883,1763200295544,-484.02192969,0.0005041,120]
[394026884,1763200295554,-500.0,0.0005041,120]
[394026885,1763200295563,-500.0,0.0005041,120]
[394026886,1763200295573,-500.0,0.0005041,120]
[394026887,1763200295582,-500.0,0.0005041,120]
[394026888,1763200295592,-500.0,0.0005041,120]
[394026889,1763200295602,-745.41,0.0005041,120]
[394026890,1763200295612,-500.0,0.0005041,120]
[394026891,1763200295621,-500.0,0.0005041,120]
[394026892,1763200295630,-500.0,0.0005041,120]
[394026893,1763200295639,-500.0,0.0005041,120]
[394026894,1763200295648,-4568.1,0.0005041,3]
[394026895,1763200295657,-500.0,0.0005041,120]
[394026896,1763200295667,-500.0,0.0005041,120]
[394026897,1763200295677,-500.0,0.0005041,120]
[394026898,1763200295686,-1131.39,0.0005041,120]
[394026899,1763200295695,-500.0,0.0005041,120]
[394026900,1763200295704,-500.0,0.0005041,120]
[394026901,1763200295713,-502.13501772,0.0005041,120]
[394026902,1763200295723,-648.67353078,0.0005041,120]
[394026903,1763200295731,-500.0,0.0005041,120]
[394026904,1763200295741,-500.0,0.0005041,120]
[394026905,1763200295750,-797.3,0.0005041,120]
[394026906,1763200295760,-500.0,0.0005041,120]
[394026907,1763200295770,-500.0,0.0005041,120]
[394026908,1763200295778,-849.34,0.0005041,120]
[394026909,1763200295788,-500.0,0.0005041,120]
[394026910,1763200295797,-502.15101939,0.0005041,120]
[394026911,1763200295955,-500.0,0.0005041,120]
[394026912,1763200295964,-577.74,0.0005041,120]
[394026913,1763200295974,-647.88,0.0005041,120]
[394026914,1763200295983,-500.0,0.0005041,30]
[394026915,1763200295992,-500.0,0.0005041,120]
[394026916,1763200296001,-566.74,0.0005041,120]
[394026917,1763200296011,-636.73,0.0005041,120]
[394026918,1763200296020,-500.0,0.0005041,30]
[394026919,1763200296029,-500.0,0.0005041,120]
[394026920,1763200296038,-500.0,0.0005041,120]
[394026921,1763200296047,-500.0,0.0005041,120]
[394026922,1763200296056,-1133.68,0.0005041,120]
[394026923,1763200296065,-500.0,0.0005041,120]
[394026924,1763200296074,-500.0,0.0005041,120]
[394026925,1763200296083,-1012.59,0.0005041,120]
[394026926,1763200296092,-800.22,0.0005041,120]
[394026927,1763200296101,-500.0,0.0005041,120]
[394026928,1763200296110,-500.0,0.0005041,120]
[394026929,1763200296119,-1236.1,0.0005041,120]
[394026930,1763200296128,-500.0,0.0005041,120]
[394026931,1763200296137,-815.37,0.0005041,120]
[394026932,1763200296146,-500.0,0.0005041,120]
[394026933,1763200296155,-515.63135091,0.0005041,120]
[394026934,1763200296165,-500.0,0.0005041,120]
[394026935,1763200296174,-500.0,0.0005041,120]
[394026936,1763200296183,-500.0,0.0005041,120]
[394026937,1763200296192,-549.16247436,0.0005041,120]
[394026938,1763200296205,-500.0,0.0005041,120]
[394026939,1763200296213,-500.0,0.0005041,120]
[394026940,1763200296222,-617.48,0.0005041,120]
[394026941,1763200296231,-1270.32,0.0005041,120]
[394026942,1763200296240,-500.0,0.0005041,120]
[394026943,1763200296249,-500.0,0.0005041,120]
[394026944,1763200296258,-2708.03,0.0005041,120]
[394026945,1763200296268,-500.0,0.0005041,120]
[394026946,1763200296277,-382.61867931,0.0005041,120]
[394026947,1763200296288,-500.0,0.0005041,120]
[394026948,1763200296297,-500.0,0.0005041,120]
[394026949,1763200296306,-500.0,0.0005041,120]
[394026950,1763200296315,-500.0,0.0005041,120]
[394026951,1763200296324,-500.0,0.0005041,120]
[394026952,1763200296332,-514.61504968,0.0005041,120]
[394026953,1763200296341,-1700.39,0.0005041,120]
[394026954,1763200296350,-845.92,0.0005041,120]
[394026955,1763200296359,-314.21627915,0.0005041,120]
[394026956,1763200296368,-590.7,0.0005041,120]
[394026957,1763200296377,-500.0,0.0005041,120]
[394026958,1763200296386,-500.0,0.0005041,120]
[394026959,1763200296395,-500.0,0.0005041,120]
[394026960,1763200296404,-500.0,0.0005041,120]
[394026961,1763200296413,-500.0,0.0005041,7]
[394026962,1763200296422,-500.0,0.0005041,120]
[394026963,1763200296431,-500.0,0.0005041,120]
[394026964,1763200296440,-500.0,0.0005041,120]
[394026965,1763200296449,-500.0,0.0005041,120]
[394026966,1763200296458,-500.0,0.0005041,120]
[394026967,1763200296466,-500.0,0.0005041,120]
[394026968,1763200296475,-500.0,0.0005041,120]
[394026969,1763200296484,-500.0,0.0005041,120]
[394026970,1763200296493,-576.07,0.0005041,120]
[394026971,1763200296502,-500.0,0.0005041,120]
[394026972,1763200296512,-500.0,0.0005041,120]
[394026973,1763200296522,-500.0,0.0005041,120]
[394026974,1763200296532,-500.0,0.0005041,120]
[394026975,1763200296541,-500.0,0.0005041,120]
[394026976,1763200296550,-580.02,0.0005041,120]
[394026977,1763200296559,-500.0,0.0005041,120]
[394026978,1763200296568,-500.0,0.0005041,120]
[394026979,1763200296577,-515.44294661,0.0005041,2]
[394026980,1763200296587,-1000.0,0.0005041,2]
[394026981,1763200296596,-221.6,0.0005041,120]
[394026982,1763200296605,-1000.0,0.0005041,2]
[394026983,1763200296614,-500.0,0.0005041,14]
[394026984,1763200296624,-500.0,0.0005041,120]
[394026985,1763200296633,-500.0,0.0005041,120]
[394026986,1763200296642,-812.44,0.0005041,2]
[394026987,1763200296651,-557.41,0.0005041,120]
[394026988,1763200296663,-1000.0,0.0005041,30]
[394026989,1763200296672,-158.78343214,0.00050548,30]
[394026990,1763200296681,-500.0,0.00050684,120]
[394026991,1763200296690,-687.74,0.00050684,120]
[394026992,1763200296700,-501.32216095,0.00050684,120]
[394026993,1763200296709,-500.0,0.00050684,120]
[394026994,1763200296719,-554.45,0.00050684,120]
[394026995,1763200296728,-500.0,0.00050684,120]
[394026996,1763200296737,-500.0,0.00050684,120]
[394026997,1763200296747,-500.0,0.00050684,120]
[394026998,1763200296756,-500.0,0.00050684,120]
[394026999,1763200296766,-500.0,0.00050684,120]
[394027000,1763200296775,-582.92,0.00050684,120]
[394027001,1763200296784,-500.0,0.00050684,120]
[394027002,1763200296793,-500.0,0.00050684,120]
[394027003,1763200296803,-790.87,0.00050684,120]
[394027004,1763200296812,-629.47,0.00050684,120]
[394027005,1763200296822,-500.0,0.00050684,120]
[394027006,1763200296831,-503.92454228,0.00050684,120]
[394027007,1763200296840,-505.66181552,0.00050684,120]
[394027008,1763200296849,-673.94,0.00050684,120]
[394027009,1763200296859,-509.19706916,0.00050684,120]
[394027010,1763200296867,-500.0,0.00050684,120]
[394027011,1763200296877,-500.0,0.00050684,120]
[394027012,1763200296886,-500.0,0.00050684,120]
[394027013,1763200296895,-758.17,0.00050684,120]
[394027014,1763200296904,-590.85,0.00050684,120]
[394027015,1763200296913,-500.0,0.00050684,120]
[394027016,1763200296922,-500.0,0.00050684,120]
[394027017,1763200296931,-500.0,0.00050684,120]
[394027018,1763200296940,-731.68,0.00050684,120]
[394027019,1763200296949,-500.0,0.00050684,120]
[394027020,1763200296958,-500.0,0.00050684,120]
[394027021,1763200296967,-571.3,0.00050684,120]
[394027022,1763200296976,-500.0,0.00050684,120]
[394027023,1763200296986,-500.0,0.00050684,120]
[394027024,1763200296994,-522.91884992,0.00050684,120]
[394027025,1763200297003,-500.0,0.00050684,120]
[394027026,1763200297013,-500.0,0.00050684,120]
[394027027,1763200297023,-536.61486313,0.00050684,120]
[394027028,1763200297032,-1090.76,0.00050684,7]
[394027029,1763200297041,-500.0,0.00050684,120]
[394027030,1763200297051,-500.0,0.00050684,120]
[394027031,1763200297059,-500.0,0.00050684,120]
[394027032,1763200297068,-500.0,0.00050684,120]
[394027033,1763200297077,-500.0,0.00050684,120]
[394027034,1763200297086,-3400.85,0.00050684,2]
[394027035,1763200297095,-500.0,0.00050684,120]
[394027036,1763200297105,-500.0,0.00050684,120]
[394027037,1763200297114,-500.0,0.00050684,120]
[394027038,1763200297123,-500.0,0.00050684,120]
[394027039,1763200297132,-1174.97,0.00050684,120]
[394027040,1763200297141,-544.52047509,0.00050684,120]
[394027041,1763200297150,-502.64710631,0.00050684,120]
[394027042,1763200297159,-503.74874675,0.00050684,120]
[394027043,1763200297168,-500.0,0.00050684,120]
[394027044,1763200297178,-618.7,0.00050684,120]
[394027045,1763200297187,-505.25112241,0.00050684,120]
[394027046,1763200297196,-500.0,0.00050684,120]
[394027047,1763200297206,-503.13530975,0.00050684,120]
[394027048,1763200297219,-500.0,0.00050684,120]
[394027049,1763200297228,-506.21,0.00050684,120]
[394027050,1763200297237,-500.0,0.00050684,120]
[394027051,1763200297246,-500.0,0.00050684,120]
[394027052,1763200297256,-502.99888234,0.00050684,120]
[394027053,1763200297265,-536.43,0.00050684,120]
[394027054,1763200297274,-505.46,0.00050684,120]
[394027055,1763200297285,-500.0,0.00050684,120]
[394027056,1763200297294,-500.0,0.00050684,120]
[394027057,1763200297303,-500.0,0.00050684,120]
[394027058,1763200297313,-566.44,0.00050684,120]
[394027059,1763200297322,-500.0,0.00050684,120]
[394027060,1763200297332,-502.97020681,0.00050684,120]
[394027061,1763200297341,-500.0,0.00050684,120]
[394027062,1763200297350,-829.99,0.00050684,120]
[394027063,1763200297359,-500.0,0.00050684,120]
[394027064,1763200297368,-500.0,0.00050684,120]
[394027065,1763200297377,-500.0,0.00050684,120]
[394027066,1763200297386,-481.33991501,0.00050684,120]
[394027067,1763200297395,-500.0,0.00050684,120]
[394027068,1763200297405,-500.0,0.00050684,120]
[394027069,1763200297414,-500.0,0.00050684,120]
[394027070,1763200297423,-500.0,0.00050684,120]
[394027071,1763200297432,-500.0,0.00050684,120]
[394027072,1763200297441,-532.66200118,0.00050684,120]
[394027073,1763200297451,-500.0,0.00050684,120]
[394027074,1763200297461,-546.38,0.00050684,120]
[394027075,1763200297472,-500.0,0.00050684,120]
[394027076,1763200297481,-785.26,0.00050684,120]
[394027077,1763200297491,-500.0,0.00050684,120]
[394027078,1763200297500,-500.0,0.00050684,120]
[394027079,1763200297511,-287.89720302,0.00050684,120]
[394027080,1763200297520,-500.0,0.00050684,120]
[394027081,1763200297529,-500.0,0.00050684,120]
[394027082,1763200297538,-483.58993601,0.00050684,120]
[394027083,1763200297547,-502.13286855,0.00050684,120]
[394027084,1763200297556,-500.0,0.00050684,120]
[394027085,1763200297565,-399.73839924,0.00050684,120]
[394027086,1763200297574,-500.0,0.00050684,120]
[394027087,1763200297583,-500.0,0.00050684,120]
[394027088,1763200297592,-500.0,0.00050684,120]
[394027089,1763200297601,-500.0,0.00050684,120]
[394027090,1763200297610,-500.0,0.00050684,120]
[394027091,1763200297620,-519.82780275,0.00050684,120]
[394027092,1763200297629,-500.0,0.00050684,120]
[394027093,1763200297638,-500.0,0.00050684,120]
[394027094,1763200297647,-500.00457242,0.00050684,120]
[394027095,1763200297657,-500.0,0.00050684,7]
[394027096,1763200297666,-500.0,0.00050684,120]
[394027097,1763200297676,-500.0,0.00050684,120]
[394027098,1763200297685,-500.0,0.00050684,120]
[394027099,1763200297694,-500.0,0.00050684,120]
[394027100,1763200297703,-500.0,0.00050684,120]
[394027101,1763200297712,-500.0,0.00050684,120]
[394027102,1763200297721,-1165.61,0.00050684,120]
[394027103,1763200297730,-194.83244284,0.00050684,120]
[394027104,1763200297740,-500.0,0.00050684,120]
[394027105,1763200297749,-629.76,0.00050684,120]
[394027106,1763200297759,-500.0,0.00050684,120]
[394027107,1763200297768,-511.51,0.00050684,2]
[394027108,1763200297777,-500.0,0.00050684,120]
[394027109,1763200297787,-503.91508328,0.00050684,120]
[394027110,1763200297796,-500.0,0.00050684,120]
[394027111,1763200297805,-612.41997565,0.00050684,120]
[394027112,1763200297814,-500.0,0.00050684,120]
[394027113,1763200297823,-500.0,0.00050684,120]
[394027114,1763200297832,-500.0,0.00050684,120]
[394027115,1763200297841,-515.28,0.00050684,120]
[394027116,1763200297851,-505.07566933,0.00050684,120]
[394027117,1763200297860,-500.0,0.00050684,120]
[394027118,1763200297869,-500.0,0.00050684,120]
[394027119,1763200297879,-172.26734204,0.00050684,2]
[394027120,1763200297887,-500.0,0.00050684,120]
[394027121,1763200297896,-500.0,0.00050684,120]
[394027122,1763200297906,-500.0,0.00050684,120]
[394027123,1763200297916,-958.77,0.00050684,120]
[394027124,1763200297927,-500.0,0.00050684,120]
[394027125,1763200297936,-513.39058544,0.00050684,120]
[394027126,1763200297945,-500.0,0.00050684,120]
[394027127,1763200297954,-500.0,0.00050684,120]
[394027128,1763200297963,-500.0,0.00050684,120]
[394027129,1763200297972,-505.05450122,0.00050684,120]
[394027130,1763200297980,-500.0,0.00050684,120]
[394027131,1763200297989,-521.89059747,0.00050684,120]
[394027132,1763200297999,-510.82544471,0.00050684,120]
[394027133,1763200298007,-500.0,0.00050684,120]
[394027134,1763200298016,-500.0,0.00050684,120]
[394027135,1763200298025,-500.0,0.00050684,120]
[394027136,1763200298034,-500.0,0.00050684,120]
[394027137,1763200298044,-500.0,0.00050684,120]
[394027138,1763200298053,-564.59215333,0.00050684,120]
[394027139,1763200298062,-500.0,0.00050684,120]
[394027140,1763200298071,-500.0,0.00050684,120]
[394027141,1763200298081,-500.0,0.00050684,120]
[394027142,1763200298090,-502.45255174,0.00050684,120]
[394027143,1763200298099,-500.0,0.00050684,120]
[394027144,1763200298108,-500.0,0.00050684,120]
[394027145,1763200298117,-500.0,0.00050684,120]
[394027146,1763200298126,-517.39700532,0.00050684,120]
[394027147,1763200298136,-500.0,0.00050684,120]
[394027148,1763200298145,-500.0,0.00050684,120]
[394027149,1763200298154,-504.07664621,0.00050684,120]
[394027150,1763200298163,-531.24,0.00050684,120]
[394027151,1763200298172,-500.0,0.00050684,120]
[394027152,1763200298181,-508.23287846,0.00050684,120]
[394027153,1763200298190,-1312.52,0.00050684,120]
[394027154,1763200298200,-666.72,0.00050684,120]
[394027155,1763200298211,-504.63878931,0.00050684,120]
[394027156,1763200298221,-500.0,0.00050684,120]
[394027157,1763200298230,-502.53929649,0.00050684,120]
[394027158,1763200298239,-500.0,0.00050684,120]
[394027159,1763200298249,-500.0,0.00050684,120]
[394027160,1763200298258,-500.0,0.00050684,120]
[394027161,1763200298267,-504.13482846,0.00050684,120]
[394027162,1763200298276,-500.0,0.00050684,120]
[394027163,1763200298286,-505.97,0.00050684,120]
[394027164,1763200298295,-500.0,0.00050684,120]
[394027165,1763200298304,-507.65,0.00050684,2]
[394027166,1763200298313,-500.0,0.00050684,120]
[394027167,1763200298322,-655.84,0.00050684,120]
[394027168,1763200298331,-500.0,0.00050684,120]
[394027169,1763200298340,-500.0,0.00050684,120]
[394027170,1763200298349,-500.0,0.00050684,120]
[394027171,1763200298359,-566.68,0.00050684,120]
[394027172,1763200298368,-505.4012247,0.00050684,120]
[394027173,1763200298377,-500.0,0.00050684,120]
[394027174,1763200298387,-629.45,0.00050684,120]
[394027175,1763200298396,-500.0,0.00050684,120]
[394027176,1763200298405,-500.0,0.00050684,120]
[394027177,1763200298415,-500.0,0.00050684,120]
[394027178,1763200298423,-532.44,0.00050684,120]
[394027179,1763200298433,-517.42,0.00050684,120]
[394027180,1763200298443,-155.57152152,0.00050684,120]
[394027181,1763200298453,-518.35032,0.00050684,120]
[394027182,1763200298462,-500.0,0.00050684,120]
[394027183,1763200298472,-500.0,0.00050684,120]
[394027184,1763200298481,-512.08,0.00050684,120]
[394027185,1763200298491,-948.59,0.00050684,120]
[394027186,1763200298500,-500.0,0.00050684,120]
[394027187,1763200298511,-500.0,0.00050684,120]
[394027188,1763200298521,-500.0,0.00050684,120]
[394027189,1763200298530,-500.0,0.00050684,120]
[394027190,1763200298540,-1011.89,0.00050684,120]
[394027191,1763200298550,-500.0,0.00050684,120]
[394027192,1763200298559,-875.77,0.00050684,120]
[394027193,1763200298568,-500.0,0.00050684,120]
[394027194,1763200298578,-500.0,0.00050684,120]
[394027195,1763200298588,-500.0,0.00050684,120]
[394027196,1763200298597,-500.0,0.00050684,120]
[394027197,1763200298607,-500.0,0.00050684,120]
[394027198,1763200298616,-500.0,0.00050684,120]
[394027199,1763200298772,-500.0,0.00050684,120]
[394027200,1763200298782,-500.0,0.00050684,120]
[394027201,1763200298792,-500.0,0.00050684,120]
[394027202,1763200298801,-604.95,0.00050684,120]
[394027203,1763200298811,-500.0,0.00050684,120]
[394027204,1763200298820,-500.0,0.00050684,120]
[394027205,1763200298830,-500.0,0.00050684,120]
[394027206,1763200298839,-500.0,0.00050684,120]
[394027207,1763200298848,-564.94,0.00050684,120]
[394027208,1763200298858,-500.0,0.00050684,120]
[394027209,1763200298867,-500.0,0.00050684,120]
[394027210,1763200298877,-500.0,0.00050684,120]
[394027211,1763200298886,-1119.68,0.00050684,120]
[394027212,1763200298896,-500.0,0.00050684,120]
[394027213,1763200298905,-500.0,0.00050684,120]
[394027214,1763200298915,-500.0,0.00050684,120]
[394027215,1763200298924,-1259.05,0.00050684,120]
[394027216,1763200298933,-865.15,0.00050684,120]
[394027217,1763200298943,-500.0,0.00050684,120]
[394027218,1763200298952,-500.0,0.00050684,2]
[394027219,1763200298961,-955.73,0.00050684,120]
[394027220,1763200298970,-500.0,0.00050684,120]
[394027221,1763200298980,-500.0,0.00050684,120]
[394027222,1763200298990,-500.0,0.00050684,120]
[394027223,1763200298999,-500.0,0.00050684,120]
[394027224,1763200299009,-500.0,0.00050684,21]
[394027225,1763200299018,-500.0,0.00050684,120]
[394027226,1763200299028,-500.0,0.00050684,120]
[394027227,1763200299037,-505.59877824,0.00050684,120]
[394027228,1763200299047,-500.0,0.00050684,120]
[394027229,1763200299056,-1298.83,0.00050684,120]
[394027230,1763200299065,-500.0,0.00050684,120]
[394027231,1763200299074,-574.0849879,0.00050684,120]
[394027232,1763200299084,-687.91,0.00050684,120]
[394027233,1763200299093,-500.0,0.00050684,120]
[394027234,1763200299102,-500.0,0.00050684,120]
[394027235,1763200299112,-500.0,0.00050684,120]
[394027236,1763200299122,-500.0,0.00050684,120]
[394027237,1763200299131,-500.0,0.00050684,120]
[394027238,1763200299141,-500.0,0.00050684,120]
[394027239,1763200299150,-1584.66,0.00050684,120]
[394027240,1763200299159,-500.0,0.00050684,120]
[394027241,1763200299169,-625.34,0.00050684,120]
[394027242,1763200299178,-500.0,0.00050684,120]
[394027243,1763200299188,-500.0,0.00050684,120]
[394027244,1763200299197,-500.0,0.00050684,120]
[394027245,1763200299208,-626.26,0.00050684,120]
[394027246,1763200299220,-500.0,0.00050684,120]
[394027247,1763200299229,-500.0,0.00050684,120]
[394027248,1763200299238,-500.0,0.00050684,120]
[394027249,1763200299248,-776.15,0.00050684,120]
[394027250,1763200299258,-500.0,0.00050684,120]
[394027251,1763200299267,-1059.33,0.00050684,120]
[394027252,1763200299277,-500.0,0.00050684,120]
[394027253,1763200299288,-2689.19,0.00050684,120]
[394027254,1763200299298,-510.26697447,0.00050684,120]
[394027255,1763200299307,-500.0,0.00050684,120]
[394027256,1763200299316,-1158.62,0.00050684,120]
[394027257,1763200299326,-520.26,0.00050684,120]
[394027258,1763200299335,-500.0,0.00050684,120]
[394027259,1763200299344,-500.0,0.00050684,120]
[394027260,1763200299354,-777.19,0.00050684,120]
[394027261,1763200299363,-536.4941348,0.00050684,120]
[394027262,1763200299372,-500.0,0.00050684,120]
[394027263,1763200299380,-500.0,0.00050684,120]
[394027264,1763200299389,-500.0,0.00050684,120]
[394027265,1763200299398,-500.0,0.00050684,120]
[394027266,1763200299408,-500.0,0.00050684,120]
[394027267,1763200299417,-500.0,0.00050684,120]
[394027268,1763200299426,-500.0,0.00050684,120]
[394027269,1763200299435,-1619.88,0.00050684,30]
[394027270,1763200299446,-1089.69,0.00050684,120]
[394027271,1763200299454,-500.0,0.00050684,120]
[394027272,1763200299464,-576.07,0.00050684,120]
[394027273,1763200299474,-500.0,0.00050684,120]
[394027274,1763200299483,-500.0,0.00050684,120]
[394027275,1763200299492,-1298.65,0.00050684,120]
[394027276,1763200299501,-527.42,0.00050684,120]
[394027277,1763200299512,-500.0,0.00050684,120]
[394027278,1763200299521,-2380.54,0.00050684,120]
[394027279,1763200299530,-1477.9,0.00050684,120]
[394027280,1763200299539,-506.33571406,0.00050684,120]
[394027281,1763200299548,-500.0,0.00050684,120]
[394027282,1763200299558,-500.0,0.00050684,120]
[394027283,1763200299567,-500.0,0.00050684,120]
[394027284,1763200299576,-745.02,0.00050684,120]
[394027285,1763200299586,-979.94,0.00050684,120]
[394027286,1763200299595,-500.0,0.00050684,120]
[394027287,1763200299604,-500.41,0.00050684,120]
[394027288,1763200299613,-500.0,0.00050684,120]
[394027289,1763200299623,-500.0,0.00050684,120]
[394027290,1763200299632,-500.0,0.00050684,120]
[394027291,1763200299641,-500.0,0.00050684,120]
[394027292,1763200299650,-507.72,0.00050684,120]
[394027293,1763200299659,-503.34258755,0.00050684,120]
[394027294,1763200299669,-500.0,0.00050684,120]
[394027295,1763200299679,-539.7,0.00050684,120]
[394027296,1763200299688,-500.0,0.00050684,120]
[394027297,1763200299698,-789.21,0.00050684,120]
[394027298,1763200299707,-500.0,0.00050684,120]
[394027299,1763200299717,-500.0,0.00050684,120]
[394027300,1763200299727,-634.35157957,0.00050684,120]
[394027301,1763200299737,-937.06,0.00050684,120]
[394027302,1763200299747,-500.0,0.00050684,120]
[394027303,1763200299756,-500.0,0.00050684,120]
[394027304,1763200299765,-523.49,0.00050684,120]
[394027305,1763200299775,-571.26,0.00050684,120]
[394027306,1763200299784,-500.0,0.00050684,120]
[394027307,1763200299793,-500.0,0.00050684,120]
[394027308,1763200299802,-840.74,0.00050684,120]
[394027309,1763200299810,-500.0,0.00050684,120]
[394027310,1763200299819,-839.73,0.00050684,120]
[394027311,1763200299830,-500.0,0.00050684,120]
[394027312,1763200299840,-500.0,0.00050684,120]
[394027313,1763200299849,-548.3,0.00050684,120]